[Event "Elitserien 2019/2020, round 7-9"]
[Site "Elite stadshotellet, Kungsgatan 6, Vaxjo, Sweden"]
[Date "2020.10.16"]
[Round "1.11"]
[White "Lundin, Jan"]
[Black "Lindberg, Bengt"]
[Result "1/2-1/2"]
[TimeControl "90 minutes for 40 moves + 30 minutes for the rest of the game + 30 seconds per move from move one."]
[WhiteTitle "FM"]
[BlackTitle "IM"]
[WhiteFideId "1706896"]
[BlackFideId "1700359"]
[WhiteElo "2350"]
[BlackElo "2401"]

1. e4 {[%clk 01:30:55]} {[%emt 00:00:03]} c5 {[%clk 01:30:40]} {[%emt
00:00:21]} 2. Nc3 {[%clk 01:31:17]} {[%emt 00:00:08]} Nc6 {[%clk 01:30:54]}
{[%emt 00:00:15]} 3. f4 {[%clk 01:31:41]} {[%emt 00:00:06]} g6 {[%clk
01:30:58]} {[%emt 00:00:26]} 4. Nf3 {[%clk 01:32:05]} {[%emt 00:00:06]} Bg7
{[%clk 01:31:06]} {[%emt 00:00:21]} 5. Be2 {[%clk 01:32:30]} {[%emt 00:00:06]}
e6 {[%clk 01:25:12]} {[%emt 00:06:23]} 6. O-O {[%clk 01:32:22]} {[%emt
00:00:38]} Nge7 {[%clk 01:25:24]} {[%emt 00:00:18]} 7. Qe1 {[%clk 01:31:57]}
{[%emt 00:00:57]} d5 {[%clk 01:21:36]} {[%emt 00:04:17]} 8. d3 {[%clk
01:29:18]} {[%emt 00:03:10]} O-O {[%emt 00:06:53]} 9. Nd1 {[%clk 01:12:04]}
{[%emt 00:14:13]} f5 10. Nf2 {[%emt 00:25:50]} Bd7 {[%clk 00:54:08]} {[%emt
00:00:16]} 11. c3 {[%clk 01:04:10]} b5 {[%clk 00:48:37]} {[%emt 00:14:24]} 12.
Be3 {[%clk 01:02:32]} d4 {[%clk 00:44:11]} {[%emt 00:07:04]} 13. cxd4 {[%clk
01:01:39]} cxd4 {[%clk 00:44:09]} {[%emt 00:01:56]} 14. Bd2 {[%clk 01:01:54]}
Qb6 {[%clk 00:43:32]} {[%emt 00:01:23]} 15. Bd1 {[%clk 00:56:31]} Rae8 {[%clk
00:43:32]} 16. Bb3 {[%clk 00:56:31]} h6 {[%clk 00:43:32]} 17. Kh1 {[%clk
00:56:31]} Kh8 {[%clk 00:40:08]} {[%emt 00:21:04]} 18. g4 {[%clk 00:37:36]} e5
{[%clk 00:38:55]} {[%emt 00:11:50]} 19. gxf5 {[%clk 00:23:07]} {[%emt
00:15:00]} gxf5 {[%emt 00:08:22]} 20. Rg1 {[%emt 00:02:35]} fxe4 {[%clk
00:38:02]} {[%emt 00:00:16]} 21. Nxe4 {[%clk 00:11:09]} {[%emt 00:05:59]} Nf5
22. Rg6 {[%emt 00:06:20]} Qd8 {[%emt 00:00:55]} 23. Rc1 {[%clk 00:07:55]}
{[%emt 00:11:13]} Nce7 24. Ra6 {[%emt 00:04:47]} exf4 {[%clk 00:17:23]} {[%emt
00:01:47]} 25. Bxf4 {[%clk 00:07:34]} {[%emt 00:00:52]} Nc8 {[%clk 00:13:47]}
{[%emt 00:04:05]} 26. Qd2 {[%clk 00:02:07]} {[%emt 00:05:58]} Nb6 {[%clk
00:07:46]} {[%emt 00:06:31]} 27. Rxa7 {[%clk 00:02:19]} {[%emt 00:00:19]} Nc4
{[%clk 00:04:31]} {[%emt 00:03:45]} 28. Bxc4 {[%clk 00:01:20]} {[%emt
00:01:30]} bxc4 {[%clk 00:04:59]} {[%emt 00:00:01]} 29. Rxc4 {[%clk 00:01:41]}
{[%emt 00:00:09]} Ne3 {[%clk 00:03:46]} {[%emt 00:01:42]} 30. Bxe3 {[%clk
00:01:36]} {[%emt 00:00:36]} dxe3 {[%clk 00:01:46]} {[%emt 00:02:30]} 31. Qxe3
{[%clk 00:01:57]} {[%emt 00:00:09]} Bg4 {[%clk 00:02:00]} {[%emt 00:00:15]} 32.
Ng1 {[%clk 00:00:59]} {[%emt 00:01:28]} Re6 {[%clk 00:02:11]} {[%emt 00:00:18]}
33. Rc1 {[%clk 00:00:46]} {[%emt 00:00:44]} Bd4 {[%clk 00:01:25]} {[%emt
00:01:15]} 34. Qg3 {[%clk 00:00:40]} {[%emt 00:00:37]} Bxa7 {[%clk 00:00:47]}
{[%emt 00:01:08]} 35. Qxg4 {[%clk 00:00:54]} {[%emt 00:00:16]} Ra6 {[%clk
00:00:48]} {[%emt 00:00:28]} 36. Qh3 {[%clk 00:00:45]} {[%emt 00:00:39]} Rg8
{[%clk 00:00:42]} {[%emt 00:00:35]} 37. Ne2 {[%clk 00:01:02]} {[%emt 00:00:14]}
Rag6 {[%clk 00:00:46]} {[%emt 00:00:26]} 38. Qf3 {[%clk 00:00:36]} {[%emt
00:00:57]} Qh4 {[%clk 00:00:39]} {[%emt 00:00:35]} 39. N2g3 {[%clk 00:00:51]}
{[%emt 00:00:16]} Bb8 {[%clk 00:00:48]} {[%emt 00:00:21]} 40. Rg1 {[%clk
00:00:54]} {[%emt 00:00:28]} Qd8 {[%clk 00:00:34]} {[%emt 00:00:45]} 41. Qe3
{[%clk 00:21:41]} {[%emt 00:09:42]} Be5 {[%clk 00:29:23]} {[%emt 00:01:40]} 42.
Rf1 {[%clk 00:19:21]} {[%emt 00:02:51]} 1/2-1/2

[Event "Elitserien 2019/2020, round 7-9"]
[Site "Elite stadshotellet, Kungsgatan 6, Vaxjo, Sweden"]
[Date "2020.10.16"]
[Round "1.12"]
[White "Alle Wahlin, Ambjorn"]
[Black "Hjelm, Niclas"]
[Result "1-0"]
[TimeControl "90 minutes for 40 moves + 30 minutes for the rest of the game + 30 seconds per move from move one."]
[BlackTitle "FM"]
[WhiteFideId "1714805"]
[BlackFideId "1700502"]
[WhiteElo "2257"]
[BlackElo "2306"]

1. c4 {[%clk 01:30:30]} {[%emt 00:00:30]} e5 {[%clk 01:29:04]} {[%emt
00:01:56]} 2. Nc3 {[%clk 01:30:44]} {[%emt 00:00:16]} Bb4 {[%clk 01:29:19]}
{[%emt 00:00:15]} 3. Nd5 {[%clk 01:30:48]} {[%emt 00:00:27]} a5 {[%clk
01:27:50]} {[%emt 00:01:58]} 4. a3 {[%clk 01:24:53]} {[%emt 00:06:25]} Be7
{[%clk 01:25:39]} {[%emt 00:02:40]} 5. g3 {[%clk 01:18:41]} {[%emt 00:06:43]}
Nf6 {[%clk 01:23:38]} {[%emt 00:02:29]} 6. Nxe7 {[%clk 01:13:31]} {[%emt
00:05:41]} Qxe7 {[%clk 01:23:55]} {[%emt 00:00:12]} 7. Bg2 {[%clk 01:13:44]}
{[%emt 00:00:18]} O-O {[%clk 01:21:49]} {[%emt 00:02:35]} 8. d3 {[%clk
01:09:42]} {[%emt 00:04:33]} a4 {[%clk 01:18:04]} {[%emt 00:04:14]} 9. e3
{[%clk 01:01:15]} {[%emt 00:08:58]} Rd8 {[%clk 01:15:55]} {[%emt 00:02:38]} 10.
Nf3 {[%clk 00:55:10]} {[%emt 00:06:36]} Nc6 {[%clk 01:07:45]} {[%emt 00:08:39]}
11. O-O {[%clk 00:55:15]} {[%emt 00:00:26]} d5 {[%clk 01:06:18]} {[%emt
00:01:57]} 12. cxd5 {[%clk 00:55:26]} {[%emt 00:00:20]} Rxd5 {[%clk 01:06:35]}
{[%emt 00:00:12]} 13. d4 {[%clk 00:36:57]} {[%emt 00:19:00]} e4 {[%clk
00:57:50]} {[%emt 00:09:14]} 14. Nd2 {[%clk 00:37:20]} {[%emt 00:00:07]} Bf5
{[%clk 00:58:01]} {[%emt 00:00:18]} 15. b3 {[%clk 00:34:29]} {[%emt 00:03:21]}
axb3 {[%clk 00:50:18]} {[%emt 00:08:13]} 16. Qxb3 {[%clk 00:34:40]} {[%emt
00:00:19]} Na5 {[%clk 00:47:20]} {[%emt 00:03:27]} 17. Qc2 {[%clk 00:32:53]}
{[%emt 00:02:18]} Re8 {[%clk 00:42:35]} {[%emt 00:05:15]} 18. Bb2 {[%clk
00:31:52]} {[%emt 00:01:31]} Qd7 {[%clk 00:35:58]} {[%emt 00:07:06]} 19. Rfc1
{[%clk 00:30:30]} {[%emt 00:01:53]} c6 {[%clk 00:33:16]} {[%emt 00:03:11]} 20.
Bc3 {[%clk 00:30:30]} {[%emt 00:00:30]} Bh3 {[%clk 00:13:26]} {[%emt 00:20:20]}
21. Bh1 {[%clk 00:24:39]} {[%emt 00:06:22]} h5 {[%clk 00:08:13]} {[%emt
00:05:43]} 22. Bxa5 {[%clk 00:18:02]} {[%emt 00:07:07]} Rxa5 {[%clk 00:08:28]}
{[%emt 00:00:14]} 23. Nxe4 {[%clk 00:18:11]} {[%emt 00:00:21]} Nxe4 {[%clk
00:07:52]} {[%emt 00:01:06]} 24. Bxe4 {[%clk 00:18:31]} {[%emt 00:00:11]} h4
{[%clk 00:06:39]} {[%emt 00:01:42]} 25. Bh1 {[%clk 00:14:34]} {[%emt 00:04:27]}
hxg3 {[%clk 00:06:02]} {[%emt 00:01:07]} 26. hxg3 {[%clk 00:14:58]} {[%emt
00:00:07]} Rh5 {[%clk 00:05:49]} {[%emt 00:00:42]} 27. Qe2 {[%clk 00:14:57]}
{[%emt 00:00:31]} Bg4 {[%clk 00:03:43]} {[%emt 00:02:35]} 28. Bf3 {[%clk
00:14:33]} {[%emt 00:00:55]} f5 {[%clk 00:03:59]} {[%emt 00:00:14]} 29. Rc5
{[%clk 00:14:43]} {[%emt 00:00:21]} Rh6 {[%clk 00:01:38]} {[%emt 00:02:52]} 30.
Re5 {[%clk 00:03:53]} {[%emt 00:11:19]} Rxe5 {[%clk 00:00:49]} {[%emt
00:01:19]} 31. dxe5 {[%clk 00:04:17]} {[%emt 00:00:06]} Qe6 {[%clk 00:00:49]}
{[%emt 00:00:29]} 32. Bxg4 {[%clk 00:03:38]} {[%emt 00:01:10]} fxg4 {[%clk
00:01:04]} {[%emt 00:00:15]} 33. Qa2 {[%clk 00:04:02]} {[%emt 00:00:05]} Kf7
{[%clk 00:00:41]} {[%emt 00:00:54]} 34. a4 {[%clk 00:04:20]} {[%emt 00:00:11]}
b6 {[%clk 00:00:34]} {[%emt 00:00:37]} 35. Qxe6+ {[%clk 00:04:35]} {[%emt
00:00:15]} Rxe6 {[%clk 00:00:52]} {[%emt 00:00:12]} 36. a5 {[%clk 00:04:03]}
{[%emt 00:01:03]} bxa5 {[%clk 00:01:09]} {[%emt 00:00:12]} 37. Rxa5 {[%clk
00:04:27]} {[%emt 00:00:06]} Kg6 {[%clk 00:01:01]} {[%emt 00:00:37]} 38. e4
{[%clk 00:04:31]} {[%emt 00:00:26]} Kh5 {[%clk 00:01:09]} {[%emt 00:00:22]} 39.
Kf1 {[%clk 00:04:37]} {[%emt 00:00:24]} g5 {[%clk 00:01:31]} {[%emt 00:00:08]}
40. Ke2 {[%clk 00:04:44]} {[%emt 00:00:23]} c5 {[%clk 00:01:12]} {[%emt
00:00:48]} 41. Rxc5 {[%clk 00:03:21]} {[%emt 00:01:53]} Rc6 {[%clk 00:01:30]}
{[%emt 00:00:12]} 42. Rd5 {[%clk 00:03:39]} {[%emt 00:00:13]} Rc2+ {[%clk
00:01:29]} {[%emt 00:00:30]} 43. Ke3 {[%clk 00:04:01]} {[%emt 00:00:09]} Rc3+
{[%clk 00:01:35]} {[%emt 00:00:24]} 44. Rd3 {[%clk 00:04:04]} {[%emt 00:00:28]}
Rc5 {[%clk 00:29:59]} {[%emt 00:02:06]} 45. Kd4 {[%clk 00:30:38]} {[%emt
00:03:56]} Rc2 {[%clk 00:30:10]} {[%emt 00:00:18]} 46. e6 {[%clk 00:30:35]}
{[%emt 00:00:34]} Kg6 {[%clk 00:30:15]} {[%emt 00:00:25]} 47. Ke5 {[%clk
00:30:57]} {[%emt 00:00:09]} Rxf2 {[%clk 00:29:12]} {[%emt 00:01:31]} 48. Rd8
{[%clk 00:31:06]} {[%emt 00:00:22]} 1-0

[Event "Elitserien 2019/2020, round 7-9"]
[Site "Elite stadshotellet, Kungsgatan 6, Vaxjo, Sweden"]
[Date "2020.10.16"]
[Round "1.13"]
[White "Wisdahl, Peter"]
[Black "Rydstrom, Tom"]
[Result "1/2-1/2"]
[TimeControl "90 minutes for 40 moves + 30 minutes for the rest of the game + 30 seconds per move from move one."]
[BlackTitle "FM"]
[WhiteFideId "1714023"]
[BlackFideId "1714830"]
[WhiteElo "2007"]
[BlackElo "2248"]

1. e4 {[%clk 01:30:57]} {[%emt 00:00:01]} e5 {[%clk 01:30:43]} {[%emt
00:00:18]} 2. Nf3 {[%clk 01:31:16]} {[%emt 00:00:10]} Nc6 {[%clk 01:31:11]}
{[%emt 00:00:04]} 3. Bb5 {[%clk 01:31:38]} {[%emt 00:00:07]} a6 {[%clk
01:31:30]} {[%emt 00:00:12]} 4. Ba4 {[%clk 01:32:00]} {[%emt 00:00:07]} Nf6
{[%clk 01:31:55]} {[%emt 00:00:06]} 5. O-O {[%clk 01:32:22]} {[%emt 00:00:08]}
b5 {[%clk 01:31:48]} {[%emt 00:00:38]} 6. Bb3 {[%clk 01:32:43]} {[%emt
00:00:08]} Bc5 {[%clk 01:31:17]} {[%emt 00:01:02]} 7. d3 {[%clk 01:32:04]}
{[%emt 00:01:09]} d6 {[%clk 01:31:40]} {[%emt 00:00:07]} 8. c3 {[%clk
01:29:12]} {[%emt 00:03:22]} O-O {[%clk 01:30:19]} {[%emt 00:01:52]} 9. a4
{[%clk 01:27:43]} {[%emt 00:01:58]} Rb8 {[%clk 01:30:30]} {[%emt 00:00:20]} 10.
Qe2 {[%clk 01:19:24]} {[%emt 00:08:48]} Re8 {[%clk 01:29:37]} {[%emt 00:01:24]}
11. Be3 {[%clk 01:17:32]} {[%emt 00:02:21]} h6 {[%clk 01:27:59]} {[%emt
00:02:09]} 12. h3 {[%clk 01:16:27]} {[%emt 00:01:34]} Bb6 {[%clk 01:26:25]}
{[%emt 00:02:05]} 13. axb5 {[%clk 01:05:36]} {[%emt 00:11:21]} axb5 {[%clk
01:26:52]} {[%emt 00:00:04]} 14. Nbd2 {[%clk 01:03:38]} {[%emt 00:02:26]} Ne7
{[%clk 01:26:58]} {[%emt 00:00:26]} 15. d4 {[%clk 01:01:34]} {[%emt 00:02:34]}
Ng6 {[%clk 01:27:11]} {[%emt 00:00:18]} 16. Qxb5 {[%clk 00:55:01]} {[%emt
00:07:03]} Bd7 {[%clk 01:20:13]} {[%emt 00:07:27]} 17. Qd3 {[%clk 00:50:33]}
{[%emt 00:04:57]} Nh5 {[%clk 01:19:21]} {[%emt 00:01:22]} 18. Ba4 {[%clk
00:42:38]} {[%emt 00:08:26]} Nhf4 {[%clk 01:16:15]} {[%emt 00:03:36]} 19. Qc2
{[%clk 00:41:10]} {[%emt 00:01:57]} Bxh3 {[%clk 00:58:20]} {[%emt 00:18:27]} 20.
Bxf4 {[%clk 00:29:20]} {[%emt 00:12:18]} Nxf4 {[%clk 00:58:42]} {[%emt
00:00:09]} 21. g3 {[%clk 00:29:34]} {[%emt 00:00:16]} Bxf1 {[%clk 00:37:44]}
{[%emt 00:21:29]} 22. Kxf1 {[%clk 00:29:07]} {[%emt 00:00:55]} Ng6 {[%clk
00:36:13]} {[%emt 00:02:03]} 23. Bxe8 {[%clk 00:28:46]} {[%emt 00:00:50]} Qxe8
{[%clk 00:36:40]} {[%emt 00:00:03]} 24. Kg2 {[%clk 00:27:40]} {[%emt 00:01:34]}
Qe6 {[%clk 00:34:20]} {[%emt 00:02:52]} 25. Nf1 {[%clk 00:22:57]} {[%emt
00:05:12]} Re8 {[%clk 00:31:24]} {[%emt 00:03:27]} 26. Re1 {[%clk 00:19:41]}
{[%emt 00:03:46]} Qg4 {[%clk 00:31:25]} {[%emt 00:00:29]} 27. N1h2 {[%clk
00:19:36]} {[%emt 00:00:34]} Qe6 {[%clk 00:31:12]} {[%emt 00:00:43]} 28. b4
{[%clk 00:18:16]} {[%emt 00:01:51]} Ra8 {[%clk 00:28:35]} {[%emt 00:03:07]} 29.
d5 {[%clk 00:18:14]} {[%emt 00:00:32]} Qd7 {[%clk 00:29:03]} {[%emt 00:00:01]}
30. c4 {[%clk 00:18:20]} {[%emt 00:00:25]} Qa4 {[%clk 00:28:59]} {[%emt
00:00:34]} 31. Qxa4 {[%clk 00:17:33]} {[%emt 00:01:17]} Rxa4 {[%clk 00:29:27]}
{[%emt 00:00:01]} 32. Rb1 {[%clk 00:17:51]} {[%emt 00:00:11]} Ra2 {[%clk
00:29:48]} {[%emt 00:00:10]} 33. c5 {[%clk 00:13:42]} {[%emt 00:04:39]} dxc5
{[%clk 00:28:58]} {[%emt 00:01:21]} 34. bxc5 {[%clk 00:14:10]} {[%emt
00:00:02]} Bxc5 {[%clk 00:29:20]} {[%emt 00:00:08]} 35. Rb8+ {[%clk 00:13:37]}
{[%emt 00:01:02]} Kh7 {[%clk 00:28:28]} {[%emt 00:01:22]} 36. Ng4 {[%clk
00:14:02]} {[%emt 00:00:05]} f6 {[%clk 00:26:28]} {[%emt 00:02:30]} 37. Rb7
{[%clk 00:12:20]} {[%emt 00:02:12]} Ra7 {[%clk 00:24:13]} {[%emt 00:02:44]} 38.
Rb5 {[%clk 00:10:15]} {[%emt 00:02:36]} Bd6 {[%clk 00:24:02]} {[%emt 00:00:41]}
39. Ne3 {[%clk 00:09:55]} {[%emt 00:00:47]} Ra4 {[%clk 00:23:12]} {[%emt
00:01:22]} 40. Nd2 {[%clk 00:08:14]} {[%emt 00:02:09]} Rb4 {[%clk 00:08:20]}
{[%emt 00:15:25]} 41. Ra5 {[%clk 00:06:07]} {[%emt 00:02:36]} Rb7 {[%clk
00:06:32]} {[%emt 00:02:18]} 42. Ndc4 {[%clk 00:05:44]} {[%emt 00:00:53]} Bb4
{[%clk 00:06:00]} {[%emt 00:01:03]} 43. Ra8 {[%clk 00:05:03]} {[%emt 00:01:10]}
Ne7 {[%clk 00:06:12]} {[%emt 00:00:18]} 44. f4 {[%clk 00:00:43]} {[%emt
00:04:50]} exf4 {[%clk 00:15:18]} {[%emt 00:21:26]} 45. gxf4 {[%clk 00:31:10]}
{[%emt 00:00:02]} Bc5 {[%clk 00:14:30]} {[%emt 00:01:18]} 46. e5 {[%clk
00:28:16]} {[%emt 00:03:22]} fxe5 {[%clk 00:14:33]} {[%emt 00:00:29]} 47. fxe5
{[%clk 00:28:42]} {[%emt 00:00:03]} Ng6 {[%clk 00:08:16]} {[%emt 00:06:47]} 48.
Kf3 {[%clk 00:26:48]} {[%emt 00:02:22]} Rb3 {[%clk 00:08:09]} {[%emt 00:00:40]}
49. e6 {[%clk 00:21:46]} {[%emt 00:05:32]} h5 {[%clk 00:07:59]} {[%emt
00:00:40]} 50. Rc8 {[%clk 00:21:21]} {[%emt 00:00:54]} Ne7 {[%clk 00:08:28]}
{[%emt 00:00:01]} 51. Rxc7 {[%clk 00:21:08]} {[%emt 00:00:43]} Bxe3 {[%clk
00:08:55]} {[%emt 00:00:04]} 52. Ke4 {[%clk 00:15:39]} {[%emt 00:05:58]} Bg5
{[%clk 00:01:24]} {[%emt 00:08:02]} 53. d6 {[%clk 00:15:15]} {[%emt 00:00:54]}
Ng6 {[%clk 00:01:39]} {[%emt 00:00:14]} 54. e7 {[%clk 00:14:06]} {[%emt
00:01:39]} Rb1 {[%clk 00:02:00]} {[%emt 00:00:09]} 55. Kf5 {[%clk 00:12:58]}
{[%emt 00:01:38]} Bxe7 {[%clk 00:01:26]} {[%emt 00:01:01]} 56. dxe7 {[%clk
00:09:51]} {[%emt 00:03:39]} Re1 {[%clk 00:01:47]} {[%emt 00:00:09]} 57. Kg5
{[%clk 00:09:23]} {[%emt 00:00:53]} h4 {[%clk 00:01:39]} {[%emt 00:00:43]} 58.
Nd6 {[%clk 00:08:01]} {[%emt 00:01:52]} Rg1+ {[%clk 00:01:05]} {[%emt
00:01:04]} 59. Kf5 {[%clk 00:07:21]} {[%emt 00:01:02]} Rf1+ {[%clk 00:00:52]}
{[%emt 00:00:51]} 60. Kg4 {[%clk 00:06:59]} {[%emt 00:00:48]} Nxe7 {[%clk
00:00:32]} {[%emt 00:00:54]} 61. Rxe7 {[%clk 00:07:24]} {[%emt 00:00:05]} Kg6
{[%clk 00:00:34]} {[%emt 00:00:28]} 62. Kxh4 {[%clk 00:07:35]} {[%emt
00:00:20]} Rh1+ {[%clk 00:00:58]} {[%emt 00:00:06]} 63. Kg3 {[%clk 00:07:34]}
{[%emt 00:00:30]} Rg1+ {[%clk 00:01:25]} {[%emt 00:00:03]} 64. Kf2 {[%clk
00:07:51]} {[%emt 00:00:11]} Rh1 {[%clk 00:01:36]} {[%emt 00:00:21]} 65. Ne8
{[%clk 00:07:36]} {[%emt 00:00:46]} Rh7 {[%clk 00:01:16]} {[%emt 00:00:46]} 66.
Nxg7 {[%clk 00:06:56]} {[%emt 00:01:13]} Rxg7 {[%clk 00:01:45]} {[%emt
00:00:02]} 67. Rxg7+ {[%emt 00:00:02]} 1/2-1/2

[Event "Elitserien 2019/2020, round 7-9"]
[Site "Elite stadshotellet, Kungsgatan 6, Vaxjo, Sweden"]
[Date "2020.10.16"]
[Round "1.14"]
[White "Olofsson-Dolk, Mattis"]
[Black "Stavenberg, Karl"]
[Result "0-1"]
[TimeControl "90 minutes for 40 moves + 30 minutes for the rest of the game + 30 seconds per move from move one."]
[WhiteFideId "1715178"]
[BlackFideId "1753630"]
[WhiteElo "2218"]
[BlackElo "2043"]

1. e4 {[%clk 01:30:56]} {[%emt 00:00:03]} c5 {[%clk 01:30:54]} {[%emt
00:00:07]} 2. Nf3 {[%clk 01:31:20]} {[%emt 00:00:06]} d6 {[%clk 01:31:12]}
{[%emt 00:00:12]} 3. d4 {[%clk 01:31:44]} {[%emt 00:00:06]} cxd4 {[%clk
01:31:30]} {[%emt 00:00:06]} 4. Nxd4 {[%clk 01:32:08]} {[%emt 00:00:12]} Nf6
{[%clk 01:31:47]} {[%emt 00:00:13]} 5. Nc3 {[%clk 01:32:30]} {[%emt 00:00:07]}
a6 {[%clk 01:32:06]} {[%emt 00:00:12]} 6. h3 {[%clk 01:32:52]} {[%emt
00:00:09]} e5 {[%clk 01:31:24]} {[%emt 00:01:11]} 7. Nde2 {[%clk 01:33:14]}
{[%emt 00:00:07]} h5 {[%clk 01:29:38]} {[%emt 00:02:17]} 8. Bg5 {[%clk
01:31:51]} {[%emt 00:01:52]} Nbd7 {[%clk 01:28:08]} {[%emt 00:02:00]} 9. Nd5
{[%clk 01:27:44]} {[%emt 00:04:38]} Be7 {[%clk 01:28:00]} {[%emt 00:00:37]} 10.
Nxe7 {[%clk 01:27:52]} {[%emt 00:00:22]} Qxe7 {[%clk 01:28:18]} {[%emt
00:00:12]} 11. Nc3 {[%clk 01:28:13]} {[%emt 00:00:10]} Nb6 {[%clk 01:15:17]}
{[%emt 00:13:31]} 12. Qf3 {[%clk 01:19:06]} {[%emt 00:09:37]} Be6 {[%clk
01:11:12]} {[%emt 00:04:35]} 13. a4 {[%clk 01:08:48]} {[%emt 00:10:48]} Rc8
{[%clk 01:04:40]} {[%emt 00:07:01]} 14. a5 {[%clk 01:07:35]} {[%emt 00:01:43]}
Nbd7 {[%clk 01:03:59]} {[%emt 00:01:10]} 15. Be2 {[%clk 01:02:07]} {[%emt
00:05:59]} Qd8 {[%clk 00:56:08]} {[%emt 00:08:20]} 16. O-O {[%clk 00:58:30]}
{[%emt 00:04:06]} Rc5 {[%clk 00:52:45]} {[%emt 00:03:54]} 17. Rfd1 {[%clk
00:47:10]} {[%emt 00:11:50]} Rxa5 {[%clk 00:49:30]} {[%emt 00:03:44]} 18. Rxa5
{[%clk 00:45:03]} {[%emt 00:02:37]} Qxa5 {[%clk 00:49:49]} {[%emt 00:00:11]} 19.
Rxd6 {[%clk 00:44:39]} {[%emt 00:00:55]} Qb4 {[%clk 00:38:14]} {[%emt
00:12:05]} 20. Qd3 {[%clk 00:43:28]} {[%emt 00:01:42]} O-O {[%clk 00:36:42]}
{[%emt 00:02:01]} 21. Bxf6 {[%clk 00:40:01]} {[%emt 00:03:57]} Nxf6 {[%clk
00:36:47]} {[%emt 00:00:25]} 22. b3 {[%clk 00:40:04]} {[%emt 00:00:29]} g6
{[%clk 00:32:06]} {[%emt 00:05:10]} 23. Bf3 {[%clk 00:31:21]} {[%emt 00:09:13]}
Kg7 {[%clk 00:32:00]} {[%emt 00:00:36]} 24. Nd1 {[%clk 00:26:17]} {[%emt
00:05:34]} Rc8 {[%clk 00:27:31]} {[%emt 00:04:59]} 25. c4 {[%clk 00:25:18]}
{[%emt 00:01:29]} b5 {[%clk 00:26:54]} {[%emt 00:01:07]} 26. cxb5 {[%clk
00:21:30]} {[%emt 00:04:19]} axb5 {[%clk 00:27:15]} {[%emt 00:00:09]} 27. Rb6
{[%clk 00:18:55]} {[%emt 00:03:04]} Rc5 {[%clk 00:14:29]} {[%emt 00:13:16]} 28.
Qd6 {[%clk 00:18:08]} {[%emt 00:01:17]} Nd7 {[%clk 00:10:57]} {[%emt 00:04:02]}
29. Rb7 {[%clk 00:16:45]} {[%emt 00:01:53]} Qd4 {[%clk 00:10:35]} {[%emt
00:00:52]} 30. Qxd4 {[%clk 00:12:25]} {[%emt 00:04:50]} exd4 {[%clk 00:11:01]}
{[%emt 00:00:05]} 31. Kf1 {[%clk 00:06:22]} {[%emt 00:06:33]} Ne5 {[%clk
00:10:51]} {[%emt 00:00:39]} 32. b4 {[%clk 00:05:37]} {[%emt 00:01:15]} Rc1
{[%clk 00:10:04]} {[%emt 00:01:17]} 33. Ke2 {[%clk 00:04:59]} {[%emt 00:01:09]}
Nxf3 {[%clk 00:08:48]} {[%emt 00:01:45]} 34. gxf3 {[%clk 00:05:21]} {[%emt
00:00:07]} Bb3 {[%clk 00:08:52]} {[%emt 00:00:25]} 0-1